{"text_format":"3","workbook":"xlsx","n_sheets":2,"sheets":["BU ÇALIŞMA KİTABINI KULLANMA","NOT DEFTERİ"],"not_rendered":{"defined_names":7},"read":"whole","date_system":"1900"}

{"sheet":"BU ÇALIŞMA KİTABINI KULLANMA","index":0,"n_rows":10,"n_cols":2,"rows_kept":10}
[null,"YÖNERGELER"]
[null,"NOT DEFTERİ çalışma sayfasını kullanarak her ödevin belirli bir puan değerinde olduğu notları hesaplayın. "]
[null,"Yönergeler: Notların bir kopyasını kaydettiğinizden emin olun."]
[null,"1. Okul adını, sınıf bilgisini, öğrenci adlarını ve öğrenci numaralarını (isteğe bağlı) yazın.   "]
[null,"2. Kullandığınız puanlama sistemine göre Not ve Not Ortalaması tablosunu ayarlayın."]
[null,"3. H8 hücresinden başlayarak ödev, sınav ya da test adlarını (ör. “Sınav 1”) ve her ödevin yüzde değerini yazın. "]
[null,"4. Her öğrencinin her bir ödev ya da testte aldığı puanı yazın. “Ortalama”, “Puan”, “Ltr Notu” ve “Not Ortalaması” sütunları otomatik olarak hesaplanır, ancak isterseniz bunları geçersiz kılabilirsiniz. Ekstra kredi puanı vermek için, bir ödeve o ödev için belirtilen olası toplam puandan daha fazla puan verin."]
[null,"Yazdırılan öğeyi değiştirmek istiyorsanız Sayfa Düzeni menüsündeki “Yazdırma Alanı” komutunu kullanın."]
[null,"Not puanları, 8. ve 9. satırda verilen toplam puan sayısına göre belirlenen standart bir yüzde ölçeğine dayanır. Her ödevi ya da testi istediğiniz puana göre ayarlayın, ardından yüzdeyi uygun nota göre ayarlayın. El ile değişiklik yapmak için not hücrelerinin üzerine yazın."]
[null,"H8 - X9 hücrelerine her bir ödev, sınav ya da testi ve puan değerlerini girin."]

{"sheet":"NOT DEFTERİ","index":1,"n_rows":24,"n_cols":24,"rows_kept":24,"merged":[[1,1,2,6],[3,1,3,6],[4,1,6,6],[7,4,7,6],[8,4,8,6],[10,4,10,6],[11,4,11,6],[19,1,19,6],[20,1,20,2],[20,3,20,4],[21,1,21,2],[21,3,21,4],[22,1,22,2],[22,3,22,4],[23,1,23,2],[23,3,23,4]]}
[null,"OKULUNUZUN ADI"]
[null,"Öğretmen Adı"]
[{"$nulls":7},"Puan",{"$f":"I4*ToplamPuanlar","v":118},120,126,134,140,{"v":145.6666666666666,"d":"146"},154,160,166,174,180,186,194]
[null,"Ders/Proje",{"$nulls":5},"%",{"v":0.59,"d":"59%"},{"v":0.6,"d":"60%"},{"v":0.63,"d":"63%"},{"v":0.67,"d":"67%"},{"v":0.7,"d":"70%"},{"v":0.728333333333333,"d":"73%"},{"v":0.77,"d":"77%"},{"v":0.8,"d":"80%"},{"v":0.83,"d":"83%"},{"v":0.87,"d":"87%"},{"v":0.9,"d":"90%"},{"v":0.93,"d":"93%"},{"v":0.97,"d":"97%"}]
[null,"Yıl/Dönem/Çeyrek",{"$nulls":5},"Ltr Notu","F","D-","D","D+","C-","C","C+","B-","B","B+","A-","A","A+"]
[{"$nulls":7},"Not Ortalaması",0,0.67,1,1.33,1.67,2,2.33,2.67,3,3.33,3.67,4,4]
[]
[{"$nulls":4},"Ödev veya Test Adı",null,null,"Ödev 1","Ödev 2","Ç1"]
[{"$nulls":4},"Toplam Mevcut Puan:",null,null,50,50,100]
[]
[{"$nulls":4},"Ödev ve testlerin toplam sayısı:",null,null,{"$f":"COUNTA(H8:X8)","v":3}]
[{"$nulls":4},"Mümkün olan toplam puan:",null,null,{"$f":"SUM(H9:X9)","v":200}]
[]
[null,"Öğrenci Adı","Öğrenci Numarası","Ortalama","Puan","Ltr Notu","Not Ortalaması","Sütun 6","Sütun 7","Sütun 8","Sütun 9","Sütun 10","Sütun 11","Sütun 12","Sütun 13","Sütun 14","Sütun 15","Sütun 16","Sütun 17","Sütun 18","Sütun 19","Sütun 20","Sütun 21","Sütun 22"]
[null,"Öğrenci numarası 1",null,{"$f":"IFERROR(IF(COUNT(Notlar[[#This Row],[Sütun 6]:[Sütun 22]])=0,\"\",SUM(Notlar[[#This Row],[Sütun 6]:[Sütun 22]])/ToplamPuanlar),\"\")","v":{"v":0.91,"d":"91.0%"}},{"$f":"IF(COUNT(Notlar[[#This Row],[Sütun 6]:[Sütun 22]])=0,\"\",SUM(Notlar[[#This Row],[Sütun 6]:[Sütun 22]]))","v":182},{"$f":"IFERROR(IF(Notlar[[#This Row],[Ortalama]]<>\"\",HLOOKUP(Notlar[[#This Row],[Ortalama]]*ToplamPuanlar,NotTablosu,3),\"\"),0)","v":"A-"},{"$f":"IFERROR(IF(Notlar[[#This Row],[Ortalama]]<>\"\",HLOOKUP(Notlar[[#This Row],[Ortalama]]*ToplamPuanlar,NotTablosu,4),\"\"),0)","v":3.67},45,45,92]
[null,"Öğrenci numarası 2",null,{"$f":"IFERROR(IF(COUNT(Notlar[[#This Row],[Sütun 6]:[Sütun 22]])=0,\"\",SUM(Notlar[[#This Row],[Sütun 6]:[Sütun 22]])/ToplamPuanlar),\"\")","v":{"v":1,"d":"100.0%"}},{"$f":"IF(COUNT(Notlar[[#This Row],[Sütun 6]:[Sütun 22]])=0,\"\",SUM(Notlar[[#This Row],[Sütun 6]:[Sütun 22]]))","v":200},{"$f":"IFERROR(IF(Notlar[[#This Row],[Ortalama]]<>\"\",HLOOKUP(Notlar[[#This Row],[Ortalama]]*ToplamPuanlar,NotTablosu,3),\"\"),0)","v":"A+"},{"$f":"IFERROR(IF(Notlar[[#This Row],[Ortalama]]<>\"\",HLOOKUP(Notlar[[#This Row],[Ortalama]]*ToplamPuanlar,NotTablosu,4),\"\"),0)","v":{"v":4,"d":"4.00"}},50,50,100]
[{"$nulls":3},{"$f":"IFERROR(IF(COUNT(Notlar[[#This Row],[Sütun 6]:[Sütun 22]])=0,\"\",SUM(Notlar[[#This Row],[Sütun 6]:[Sütun 22]])/ToplamPuanlar),\"\")","v":""},{"$f":"IF(COUNT(Notlar[[#This Row],[Sütun 6]:[Sütun 22]])=0,\"\",SUM(Notlar[[#This Row],[Sütun 6]:[Sütun 22]]))","v":""},{"$f":"IFERROR(IF(Notlar[[#This Row],[Ortalama]]<>\"\",HLOOKUP(Notlar[[#This Row],[Ortalama]]*ToplamPuanlar,NotTablosu,3),\"\"),0)","v":""},{"$f":"IFERROR(IF(Notlar[[#This Row],[Ortalama]]<>\"\",HLOOKUP(Notlar[[#This Row],[Ortalama]]*ToplamPuanlar,NotTablosu,4),\"\"),0)","v":""}]
[{"$nulls":3},{"$f":"IFERROR(IF(COUNT(Notlar[[#This Row],[Sütun 6]:[Sütun 22]])=0,\"\",SUM(Notlar[[#This Row],[Sütun 6]:[Sütun 22]])/ToplamPuanlar),\"\")","v":""},{"$f":"IF(COUNT(Notlar[[#This Row],[Sütun 6]:[Sütun 22]])=0,\"\",SUM(Notlar[[#This Row],[Sütun 6]:[Sütun 22]]))","v":""},{"$f":"IFERROR(IF(Notlar[[#This Row],[Ortalama]]<>\"\",HLOOKUP(Notlar[[#This Row],[Ortalama]]*ToplamPuanlar,NotTablosu,3),\"\"),0)","v":""},{"$f":"IFERROR(IF(Notlar[[#This Row],[Ortalama]]<>\"\",HLOOKUP(Notlar[[#This Row],[Ortalama]]*ToplamPuanlar,NotTablosu,4),\"\"),0)","v":""}]
[{"$nulls":3},{"$f":"IFERROR(IF(COUNT(Notlar[[#This Row],[Sütun 6]:[Sütun 22]])=0,\"\",SUM(Notlar[[#This Row],[Sütun 6]:[Sütun 22]])/ToplamPuanlar),\"\")","v":""},{"$f":"IF(COUNT(Notlar[[#This Row],[Sütun 6]:[Sütun 22]])=0,\"\",SUM(Notlar[[#This Row],[Sütun 6]:[Sütun 22]]))","v":""},{"$f":"IFERROR(IF(Notlar[[#This Row],[Ortalama]]<>\"\",HLOOKUP(Notlar[[#This Row],[Ortalama]]*ToplamPuanlar,NotTablosu,3),\"\"),0)","v":""},{"$f":"IFERROR(IF(Notlar[[#This Row],[Ortalama]]<>\"\",HLOOKUP(Notlar[[#This Row],[Ortalama]]*ToplamPuanlar,NotTablosu,4),\"\"),0)","v":""}]
[]
[null,"Sınıf Özeti",null,"Ortalama",null,"Ltr Notu","Not Ortalaması","","","","","","","","","","",""]
[null," Ortalama",null,{"$f":"IFERROR(AVERAGE(Notlar[[#All],[Ortalama]]),0)","v":{"v":0.9550000000000001,"d":"95.5%"}},null,{"$f":"IFERROR(HLOOKUP(D22*ToplamPuanlar,NotTablosu,3),\"\")","v":"A"},{"$f":"IFERROR(AVERAGE(Notlar[[#All],[Not Ortalaması]]),0)","v":{"v":3.835,"d":"3.84"}},"","","","","","","","","","","","","","","","",""]
[null," En Yüksek Puan",null,{"$f":"IFERROR(MAX(Notlar[[#All],[Ortalama]]),0)","v":{"v":1,"d":"100.0%"}},null,{"$f":"IFERROR(HLOOKUP(D23*ToplamPuanlar,NotTablosu,3),\"\")","v":"A+"},{"$f":"IFERROR(MAX(Notlar[[#All],[Not Ortalaması]]),0)","v":{"v":4,"d":"4.00"}},"","","","","","","","","","","","","","","","",""]
[null," En Düşük Puan",null,{"$f":"IFERROR(MIN(Notlar[[#All],[Ortalama]]),0)","v":{"v":0.91,"d":"91.0%"}},null,{"$f":"IFERROR(HLOOKUP(D24*ToplamPuanlar,NotTablosu,3),\"\")","v":"A-"},{"$f":"IFERROR(MIN(Notlar[[#All],[Not Ortalaması]]),0)","v":3.67},"","","","","","","","","","","","","","","","",""]